fUST/lending_fUST_20240321
["ID","MTS","AMOUNT","RATE_DAILY","PERIOD"]
[319731471,1710955750410,-2602.41354396,0.00022841,2]
[319731472,1710955750430,-2368.30668109,0.0002285,2]
[319731473,1710955750458,-9484.0508978,0.00022911,2]
[319731474,1710955750478,-185.00956,0.00023009,2]
[319731475,1710955750497,-265.87314,0.00023298,2]
[319731476,1710955750516,-796.6616823,0.00023373,2]
[319731477,1710955750534,-239.17077989,0.00023504,2]
[319731478,1710955750554,-156.21736877,0.00023504,2]
[319731479,1710955750573,-154.92253873,0.00023504,2]
[319731480,1710955750594,-250.0,0.00023505,2]
[319731481,1710955750614,-187.22672451,0.00023747,2]
[319731482,1710955750635,-172.897601,0.00023859,2]
[319731483,1710955750655,-154.92258826,0.00024496,2]
[319731484,1710955750673,-309.8296564,0.00024788,2]
[319731485,1710955750697,-679.0478751,0.00024898,2]
[319731486,1710955750718,-513.09941389,0.00024971,2]
[319731487,1710955750737,-278.37814672,0.00024996,2]
[319731488,1710955750756,-186.99808186,0.00024996,2]
[319731489,1710955750775,-309.82957099,0.00024996,2]
[319731490,1710955750795,-573.75962981,0.00024996,2]
[319731491,1710955750816,-191.84776158,0.00024996,2]
[319731492,1710955750836,-2865.73307262,0.00024996,2]
[319731493,1710955750855,-157.8712272,0.00024996,2]
[319731494,1710955750875,-1537.480344,0.00024996,2]
[319731495,1710955750895,-618.43106565,0.00024996,2]
[319731496,1710955750915,-232.31715132,0.00024996,2]
[319731497,1710955750934,-171.91618237,0.00024997,2]
[319731498,1710955750959,-595.50722637,0.00024997,2]
[319731499,1710955750979,-385.84072389,0.00024997,2]
[319731500,1710955750999,-500.0,0.00024997,2]
[319731501,1710955751018,-286.51108662,0.00024997,2]
[319731502,1710955751038,-500.0,0.00024997,2]
[319731503,1710955751059,-500.0,0.00024997,2]
[319731504,1710955751079,-500.0,0.00024997,2]
[319731505,1710955751099,-308.18430104,0.00024997,2]
[319731506,1710955751119,-500.0,0.00024997,2]
[319731507,1710955751138,-328.79795547,0.00024997,2]
[319731508,1710955751159,-500.0,0.00024997,2]
[319731509,1710955751181,-500.0,0.00024997,2]
[319731510,1710955751206,-500.0,0.00024997,2]
[319731511,1710955751227,-500.0,0.00024997,2]
[319731512,1710955751249,-500.0,0.00024997,2]
[319731513,1710955751269,-500.0,0.00024998,2]
[319731514,1710955751291,-500.0,0.00024998,2]
[319731515,1710955751311,-500.0,0.00024998,2]
[319731516,1710955751332,-500.0,0.00024998,2]
[319731517,1710955751353,-642.85,0.00024998,2]
[319731518,1710955751374,-539.04,0.00024998,2]
[319731519,1710955751394,-500.0,0.00024998,2]
[319731520,1710955751414,-547.49,0.00024998,2]
[319731521,1710955751434,-500.0,0.00024998,2]
[319731522,1710955751460,-1674.17,0.00024998,2]
[319731523,1710955751481,-1775.63,0.00024998,2]
[319731524,1710955751501,-800.27,0.00024998,2]
[319731525,1710955751522,-9295.59,0.00024998,2]
[319731526,1710955751541,-1699.07,0.00024998,2]
[319731527,1710955751562,-500.0,0.00024998,2]
[319731528,1710955751582,-2819.44778229,0.00024998,2]
[319731529,1710955763143,-324.670828,0.00022837,2]
[319731546,1710955832278,-340.38445779,0.00024004,2]
[319731547,1710955832291,-1578.71161058,0.00024004,2]
[319731549,1710955832301,-1476.73003936,0.00024005,2]
[319731551,1710955832311,-154.92253873,0.00024005,2]
[319731552,1710955832322,-154.92253873,0.00024005,2]
[319731554,1710955832332,-779.2579641,0.00024006,2]
[319731557,1710955832341,-173.804514,0.00024007,2]
[319731561,1710955832351,-1145.53808301,0.00024996,2]
[319731563,1710955832361,-2603.05375156,0.00024996,2]
[319731566,1710955832371,-683.2104041,0.00024996,2]
[319731569,1710955832381,-155.36492029,0.00024996,2]
[319731571,1710955832390,-2114.98463376,0.00024996,2]
[319731573,1710955832400,-112.80916697,0.00024996,2]
[319731718,1710955838250,-281.28244623,0.00024996,2]
[319731721,1710955838268,-1069.81327689,0.00024996,2]
[319731723,1710955838278,-424.64070955,0.00024997,2]
[319731725,1710955838287,-242.46336036,0.00024997,2]
[319731727,1710955838299,-300.72733171,0.00024997,2]
[319731729,1710955838309,-252.16635454,0.00024997,2]
[319731731,1710955838319,-1701.64,0.00024997,2]
[319731733,1710955838329,-451.63017508,0.00024997,2]
[319731735,1710955838338,-1368.00221771,0.00024998,2]
[319731737,1710955838348,-150.21425118,0.00024998,2]
[319731739,1710955838357,-500.0,0.00024998,2]
[319731741,1710955838367,-1664.18,0.00024998,2]
[319731743,1710955838376,-2723.46,0.00024998,2]
[319731745,1710955838385,-911.14,0.00024998,2]
[319731747,1710955838394,-500.0,0.00024998,2]
[319731749,1710955838404,-2195.42,0.00024998,2]
[319731751,1710955838414,-1077.66,0.00024998,2]
[319731753,1710955838423,-500.0,0.00024998,2]
[319731755,1710955838433,-500.0,0.00024998,2]
[319731757,1710955838442,-15512.65889953,0.00024998,2]
[319731760,1710955838454,-5557.47110047,0.00024998,2]
[319731762,1710955838463,-500.0,0.00024998,2]
[319731764,1710955838472,-993.94,0.00024998,2]
[319731766,1710955838482,-242.95639473,0.00024998,2]
[319731768,1710955838491,-7256.86316827,0.00024998,2]
[319731770,1710955838506,-12607.10683173,0.00024998,2]
[319731772,1710955838518,-671.71,0.00024998,2]
[319731774,1710955838526,-502.80633074,0.00024998,2]
[319731776,1710955838535,-1458.18,0.00024998,2]
[319731778,1710955838543,-500.0,0.00024998,2]
[319731780,1710955838552,-500.0,0.00024998,2]
[319731782,1710955838562,-2762.48,0.00024998,2]
[319731784,1710955838570,-1080.19,0.00024998,2]
[319731786,1710955838580,-3919.56,0.00024998,2]
[319731788,1710955838589,-623.86,0.00024998,2]
[319731790,1710955838598,-184.51537714,0.00024998,2]
[319731794,1710955838622,-315.48462286,0.00024998,2]
[319731796,1710955838632,-4541.5,0.00024998,2]
[319731798,1710955838641,-1827.46,0.00024998,2]
[319731800,1710955838650,-632.64,0.00024998,2]
[319731802,1710955838659,-9189.68,0.00024998,2]
[319731804,1710955838668,-500.0,0.00024998,2]
[319731806,1710955838678,-1680.37,0.00024998,2]
[319731808,1710955838689,-630.07,0.00024998,2]
[319731810,1710955838698,-500.0,0.00024999,2]
[319731812,1710955838707,-667.17,0.00024999,2]
[319731814,1710955838716,-500.0,0.00024999,2]
[319731816,1710955838726,-586.83,0.00024999,2]
[319731818,1710955838734,-500.0,0.00024999,2]
[319731820,1710955838744,-1702.01,0.00024999,2]
[319731822,1710955838756,-500.0,0.00024999,2]
[319731824,1710955838765,-353.27887836,0.00024999,2]
[319731826,1710955838781,-146.72112164,0.00024999,2]
[319731828,1710955838790,-500.0,0.00024999,2]
[319731831,1710955838799,-367.50434828,0.00024999,2]
[319732243,1710955841777,-132.49565172,0.00024999,2]
[319732245,1710955841786,-500.0,0.00024999,2]
[319732246,1710955841796,-500.0,0.00024999,2]
[319732248,1710955841806,-542.33,0.00024999,2]
[319732249,1710955841816,-500.0,0.00024999,2]
[319732251,1710955841825,-2474.86,0.00024999,2]
[319732253,1710955841834,-236.64260937,0.00024999,2]
[319732254,1710955841843,-539.07,0.00024999,2]
[319732256,1710955841852,-210.85507968,0.00024999,2]
[319732257,1710955841861,-170.78449117,0.00024999,2]
[319732259,1710955841871,-1655.5,0.00024999,2]
[319732261,1710955841880,-500.0,0.00024999,2]
[319732262,1710955841889,-500.0,0.00024999,2]
[319732264,1710955841898,-500.0,0.00024999,2]
[319732265,1710955841907,-500.0,0.00024999,2]
[319732267,1710955841916,-528.94,0.00024999,2]
[319732269,1710955841925,-279.29940962,0.00024999,2]
[319732270,1710955841934,-500.0,0.00024999,2]
[319732272,1710955841944,-2488.17,0.00024999,2]
[319732274,1710955841953,-230.74881393,0.00024999,2]
[319732275,1710955841963,-500.0,0.00024999,2]
[319732277,1710955841972,-500.0,0.00024999,2]
[319732278,1710955841981,-500.0,0.00024999,2]
[319732280,1710955841991,-316.12410765,0.00024999,2]
[319732282,1710955842000,-500.0,0.00024999,2]
[319732283,1710955842014,-500.0,0.00024999,2]
[319732285,1710955842023,-1046.53,0.00024999,2]
[319732286,1710955842032,-549.57,0.00024999,2]
[319732288,1710955842041,-500.0,0.00024999,2]
[319732289,1710955842050,-500.0,0.00024999,2]
[319732290,1710955842059,-500.0,0.00024999,2]
[319732291,1710955842067,-500.0,0.00024999,2]
[319732292,1710955842076,-500.0,0.00024999,2]
[319732293,1710955842085,-3272.89,0.00024999,2]
[319732294,1710955842097,-192.7722209,0.00024999,2]
[319732295,1710955842105,-2476.07,0.00024999,2]
[319732296,1710955842114,-903.9,0.00024999,2]
[319732297,1710955842123,-553.86,0.00024999,2]
[319732298,1710955842132,-500.0,0.00024999,2]
[319732299,1710955842141,-500.0,0.00024999,2]
[319732300,1710955842150,-500.0,0.00024999,2]
[319732301,1710955842158,-500.0,0.00024999,2]
[319732302,1710955842168,-500.0,0.00024999,2]
[319732303,1710955842179,-500.0,0.00024999,2]
[319732304,1710955842188,-500.0,0.00024999,2]
[319732305,1710955842197,-500.0,0.00024999,2]
[319732306,1710955842206,-500.0,0.00024999,2]
[319732307,1710955842215,-500.0,0.00024999,2]
[319732308,1710955842223,-500.0,0.00024999,2]
[319732309,1710955842233,-500.0,0.00024999,2]
[319732310,1710955842241,-500.0,0.00024999,2]
[319732311,1710955842251,-650.65,0.00024999,2]
[319732312,1710955842263,-502.48,0.00024999,2]
[319732313,1710955842272,-500.0,0.00024999,2]
[319732315,1710955842282,-188.02131333,0.00024999,2]
[319732317,1710955842291,-500.0,0.00024999,2]
[319732319,1710955842300,-500.0,0.00024999,2]
[319732321,1710955842309,-2012.78,0.00024999,2]
[319732323,1710955842319,-500.0,0.00024999,2]
[319732325,1710955842328,-500.0,0.00024999,2]
[319732327,1710955842337,-500.0,0.00024999,2]
[319732329,1710955842346,-679.04787508,0.00025035,2]
[319732331,1710955842356,-679.04787508,0.00025172,2]
[319732333,1710955842365,-1000.0,0.00025173,2]
[319732335,1710955842374,-500.0,0.00025271,2]
[319732337,1710955842384,-1701.64,0.00025271,2]
[319732339,1710955842395,-500.0,0.00025272,2]
[319732341,1710955842404,-500.0,0.00025272,2]
[319732343,1710955842414,-500.0,0.00025272,2]
[319732345,1710955842423,-500.0,0.00025272,2]
[319732347,1710955842431,-642.85,0.00025272,2]
[319732349,1710955842440,-539.04,0.00025272,2]
[319732351,1710955842449,-500.0,0.00025272,2]
[319732353,1710955842460,-547.49,0.00025272,2]
[319732355,1710955842472,-500.0,0.00025272,2]
[319732357,1710955842485,-603.674871,0.00025272,2]
[319732359,1710955842498,-603.674871,0.00025272,2]
[319732361,1710955842512,-171.757728,0.00025272,2]
[319732363,1710955842522,-800.27,0.00025272,2]
[319732365,1710955842532,-171.757728,0.00025272,2]
[319732367,1710955842541,-1699.07,0.00025272,2]
[319732369,1710955842550,-500.0,0.00025272,2]
[319732371,1710955842559,-4187.45,0.00025272,2]
[319732373,1710955842568,-151.0,0.00025272,2]
[319732375,1710955842577,-500.0,0.00025272,2]
[319732377,1710955842587,-1664.18,0.00025272,2]
[319732379,1710955842597,-2723.46,0.00025272,2]
[319732382,1710955842606,-911.14,0.00025272,2]
[319732385,1710955842616,-458.11604312,0.00025272,2]
[319732388,1710955842625,-2195.42,0.00025272,2]
[319732391,1710955842634,-1077.66,0.00025272,2]
[319732394,1710955842643,-500.0,0.00025272,2]
[319732397,1710955842655,-21070.13,0.00025272,2]
[319732400,1710955842664,-500.0,0.00025272,2]
[319732402,1710955842674,-993.94,0.00025272,2]
[319732404,1710955842682,-671.71,0.00025272,2]
[319732406,1710955842692,-16860.01791855,0.00025272,2]
[319732495,1710955843484,-1.17920977,0.00024998,2]
[319732958,1710955848123,-42.87220014,0.00024997,2]
[319733360,1710955853020,2596.5207486,0.00035616,120]
[319750198,1710956064302,-205.03177245,0.00023071,2]
[319750199,1710956064322,-8.96822755,0.00023071,2]
[319750201,1710956135464,293.215294,0.00021574,2]
[319750202,1710956138561,213.446733,0.00026575,120]
[319750204,1710956216300,8426.62947192,0.00041006,30]
[319750205,1710956232025,311.065833,0.00022397,2]
[319750206,1710956274592,24900.0,0.00021848,2]
[319750208,1710956344479,2956.38842336,0.00035616,120]
[319750209,1710956375005,-1043.3113712,0.00022872,2]
[319750210,1710956375027,-597.13322661,0.00022872,2]
[319750211,1710956375050,-6732.9872,0.00022872,2]
[319750212,1710956375073,-1618.00449362,0.00022873,2]
[319750213,1710956375096,-160.68166387,0.00022873,2]
[319750214,1710956375123,-180.00299186,0.00022874,2]
[319750215,1710956375147,-469.98746995,0.00022874,2]
[319750216,1710956375169,-12359.1163908,0.00022875,2]
[319750217,1710956375192,-300.0,0.00023041,2]
[319750218,1710956375215,-685.20411728,0.00023041,2]
[319750219,1710956375241,-602.76739922,0.00023041,2]
[319750220,1710956375264,-1609.06716003,0.00023041,2]
[319750221,1710956375289,-3406.30845617,0.00023042,2]
[319750222,1710956375313,-807.30445512,0.00023042,2]
[319750223,1710956375336,-539.22321355,0.00023042,2]
[319750224,1710956375360,-779.2579641,0.00023043,2]
[319750225,1710956375390,-1476.73003936,0.00023043,2]
[319750226,1710956375413,-1144.55702036,0.00023072,2]
[319750227,1710956375436,-684.87961053,0.00023172,2]
[319750228,1710956375464,-163.59021745,0.0002419,2]
[319750229,1710956375487,-401.37624556,0.00024658,2]
[319750230,1710956375510,-271.61915004,0.00024897,2]
[319750231,1710956375533,-271.61915003,0.00024965,2]
[319750232,1710956375556,-405.14954919,0.00024995,2]
[319750233,1710956375579,-239.89810597,0.00024995,2]
[319750234,1710956375602,-3050.22333813,0.00024995,2]
[319750235,1710956601769,158.14912,0.00021574,2]
[319750236,1710956801947,2052.58,0.00022555,2]
[319750237,1710956926535,971.61233756,0.00022329,2]
[319750238,1710956951188,-5167.41174418,0.00022106,2]
[319750239,1710956951208,-1609.06716003,0.00022328,2]
[319750240,1710956951228,-154.92253873,0.00022819,2]
[319750241,1710956951248,-541.4874358,0.0002282,2]
[319750242,1710956951268,-685.20411728,0.00023159,2]
[319750243,1710956951293,-876.45467613,0.0002316,2]
[319750244,1710956951312,-24900.0,0.00023697,2]
[319750245,1710956951331,-186.93334316,0.00023722,2]
[319750246,1710956951350,-311.065833,0.00023822,2]
[319750247,1710956951369,-2953.04670375,0.00024013,2]
[319750248,1710956962120,-9467.84992561,0.00023063,2]
[319750249,1710956962140,-852.55038985,0.00024013,2]
[319750250,1710957000634,10000.0,0.00041014,30]
[319750251,1710957002989,10000.0,0.00041014,30]
[319750252,1710957019655,10000.0,0.00041014,30]
[319750289,1710957032980,-2474.2933577,0.00022106,2]
[319750355,1710957038606,-335.54821287,0.00022106,2]
[319750357,1710957038615,-250.0,0.00023948,2]
[319750359,1710957038625,-133.7618448,0.00024013,2]
[319750361,1710957038634,-367.32614959,0.00024494,2]
[319750363,1710957038643,-203.98396584,0.00024894,2]
[319750365,1710957038652,-162.97149005,0.00024896,2]
[319750367,1710957038661,-2999.84958056,0.00024896,2]
[319750369,1710957038670,-322.79620738,0.00024897,2]
[319750371,1710957038681,-677.20379262,0.00024897,2]
[319750373,1710957038690,-162.97149001,0.00024964,2]
[319750375,1710957038699,-159.82471737,0.00024993,2]
[319750377,1710957038710,-160.22666759,0.00024993,2]
[319750379,1710957038719,-215.95897464,0.00024993,2]
[319750381,1710957038728,-168.02542953,0.00024993,2]
[319750382,1710957038737,-684.92387602,0.00024993,2]
[319750383,1710957038746,-161.05769215,0.00024994,2]
[319750384,1710957038755,-204.83959297,0.00024994,2]
[319750385,1710957038764,-227.41828234,0.00024994,2]
[319750386,1710957038773,-539.22321355,0.00024994,2]
[319750387,1710957038782,-184.41213736,0.00024994,2]
[319750388,1710957038791,-215.88707238,0.00024994,2]
[319750389,1710957038800,-1609.03626607,0.00024994,2]
[319750390,1710957038809,-464.8849598,0.00024994,2]
[319750391,1710957038818,-266.74087693,0.00024994,2]
[319750421,1710957039141,-603.62713237,0.00024994,2]
[319750423,1710957039150,-1788.15273929,0.00024994,2]
[319750578,1710957040600,-4615.94781095,0.00024994,2]
[319750580,1710957040609,-954.39823141,0.00024994,2]
[319750582,1710957040618,-589.80909816,0.00024994,2]
[319750584,1710957040627,-500.0,0.00024994,2]
[319750586,1710957040636,-358.94544328,0.00024994,2]
[319750588,1710957040645,-348.63938664,0.00024994,2]
[319750590,1710957040654,-500.0,0.00024994,2]
[319750592,1710957040663,-500.0,0.00024994,2]
[319750594,1710957040672,-228.73672158,0.00024994,2]
[319750596,1710957040681,-500.0,0.00024994,2]
[319750598,1710957040690,-1559.84,0.00024994,2]
[319750600,1710957040700,-1557.48,0.00024994,2]
[319750602,1710957040709,-3838.5,0.00024994,2]
[319750604,1710957040718,-835.21,0.00024994,2]
[319750606,1710957040726,-500.0,0.00024994,2]
[319750607,1710957040735,-572.06,0.00024994,2]
[319750609,1710957040744,-1685.66661602,0.00024994,2]
[319750889,1710957043556,-693.21296999,0.00024994,2]
[319750891,1710957043566,-268.24199987,0.00024994,2]
[319750894,1710957043586,-8644.50669037,0.00024994,2]
[319750896,1710957043599,-1189.73765153,0.00024994,2]
[319750899,1710957043611,-6832.92407222,0.00024994,2]
[319750901,1710957043620,-224.17791887,0.00024995,2]
[319750903,1710957043629,-275.34632078,0.00024995,2]
[319750905,1710957043638,-205.03177245,0.00024995,2]
[319750907,1710957043647,-500.0,0.00024995,2]
[319750909,1710957043657,-500.0,0.00024995,2]
[319750911,1710957043667,-536.44674645,0.00024995,2]
[319750913,1710957043676,-2012.47,0.00024995,2]
[319750915,1710957043685,-1035.19,0.00024995,2]
[319750917,1710957043694,-500.0,0.00024995,2]
[319750919,1710957043704,-500.0,0.00024995,2]
[319750921,1710957043713,-500.0,0.00024995,2]
[319750923,1710957043721,-500.0,0.00024995,2]
[319750925,1710957043730,-1397.43,0.00024995,2]
[319750927,1710957043739,-1610.35,0.00024995,2]
[319750929,1710957043748,-369.89707908,0.00024995,2]
[319750931,1710957043757,-462.57986475,0.00024995,2]
[319750933,1710957043766,-500.0,0.00024995,2]
[319750934,1710957043776,-500.0,0.00024995,2]
[319750937,1710957043785,-500.0,0.00024995,2]
[319750939,1710957043794,-500.0,0.00024995,2]
[319750940,1710957043803,-3848.59665771,0.00024995,2]
[319752900,1710957065118,2601.08142185,0.00017958,2]
[319753395,1710957151138,10000.0,0.00041014,30]
[319753396,1710957152477,10000.0,0.00041014,30]
[319753397,1710957193092,225.0,0.00041014,30]
[319753398,1710957212435,1033164.79139871,0.00041014,60]
[319753399,1710957233459,234.76419545,0.00021,2]
[319753400,1710957259580,10000.0,0.00041017,30]
[319753401,1710957263219,10000.0,0.00041017,30]
[319753402,1710957264250,10000.0,0.00041017,30]
[319753403,1710957265142,10000.0,0.00041017,30]
[319753404,1710957265842,10000.0,0.00041017,30]
[319753405,1710957275726,252.99403657,0.00041017,30]
[319753406,1710957276797,1073.9320552,0.00021,2]
[319753408,1710957278812,8310.56024539,0.00041017,30]
[319753410,1710957279035,262.58037958,0.00025,120]
[319753414,1710957776051,600.0,0.00041025,30]
[319753420,1710958038146,-366.62315762,0.00021744,2]
[319753421,1710958038168,-207.10578728,0.00021744,2]
[319753428,1710958103684,-172.8976025,0.00021225,2]
[319753429,1710958103706,-24881.1023975,0.00021225,2]
[319753430,1710958141105,7296.6166504,0.0002,5]
[319753431,1710958152124,-18.8976025,0.00021225,2]
[319753432,1710958152145,-154.92253873,0.0002174,2]
[319753433,1710958152166,-337.18867591,0.0002174,2]
[319753434,1710958152185,-1571.32607788,0.0002174,2]
[319753435,1710958152207,-154.92253873,0.0002174,2]
[319753436,1710958152229,-814.96064088,0.0002174,2]
[319753437,1710958152251,-154.92253873,0.0002174,2]
[319753438,1710958152272,-302.11520456,0.00021741,2]
[319753439,1710958152298,-685.20411728,0.00021741,2]
[319753440,1710958152320,-400.0,0.00021741,2]
[319753441,1710958152341,-290.98092274,0.00021741,2]
[319753442,1710958152365,-212.37767704,0.00021741,2]
[319753443,1710958152386,-683.2104041,0.00021741,2]
[319753444,1710958152407,-300.0,0.00021742,2]
[319753445,1710958152428,-160.68166387,0.00021742,2]
[319753446,1710958152449,-154.92253873,0.00021744,2]
[319753447,1710958152471,-2395.30775668,0.00021744,2]
[319753448,1710958152494,-212.5043903,0.00021756,2]
[319753449,1710958152515,-838.17395454,0.00022903,2]
[319753450,1710958152536,-819.33646414,0.00023804,2]
[319753451,1710958152557,-3504.14814187,0.00023912,2]
[319753452,1710958152577,-275.34632078,0.00023914,2]
[319753453,1710958155888,2602.41354396,0.00022902,2]
[319753454,1710958166223,310.90538466,0.00023741,2]
[319753455,1710958168961,154.92253873,0.0002,2]
[319753456,1710958184947,154.92253873,0.0002,2]
[319753457,1710958206958,171.21238381,0.0002,2]
[319753501,1710958232714,-3436.23958139,0.00024883,2]
[319753503,1710958232723,-154.92253873,0.00024884,2]
[319753505,1710958232732,-1919.09606837,0.00024884,2]
[319753507,1710958232741,-154.92253873,0.00024884,2]
[319753509,1710958232750,-683.2104041,0.00024884,2]
[319753511,1710958232763,-559.27847432,0.00024885,2]
[319753513,1710958232773,-325.68369138,0.00024886,2]
[319753515,1710958232782,-186.93334315,0.0002489,2]
[319753517,1710958232791,-1216.41521921,0.00024891,2]
[319753519,1710958232800,-162.97149001,0.00024893,2]
[319753521,1710958232811,-1000.0,0.00024894,2]
[319753523,1710958232820,-3311.85875026,0.00024894,2]
[319753525,1710958232829,-723.48973565,0.00024929,2]
[319753527,1710958232838,-191.84776158,0.0002499,2]
[319753529,1710958232847,-930.41641748,0.0002499,2]
[319753531,1710958232857,-876.45467613,0.0002499,2]
[319753533,1710958232867,-642.6986259,0.0002499,2]
[319753535,1710958232876,-156.21736877,0.0002499,2]
[319753537,1710958232885,-298.48277783,0.0002499,2]
[319753539,1710958232894,-155.08709046,0.0002499,2]
[319753542,1710958232907,-275.34632178,0.0002499,2]
[319753543,1710958232917,-160.68166387,0.0002499,2]
[319753544,1710958232925,-814.34175207,0.0002499,2]
[319753545,1710958232934,-289.02523034,0.0002499,2]
[319753546,1710958232943,-354.85899379,0.0002499,2]
[319753547,1710958232952,-211.9836543,0.0002499,2]
[319753548,1710958232962,-1665.39475225,0.0002499,2]
[319753550,1710958232971,-400.0,0.0002499,2]
[319753552,1710958232980,-154.92253873,0.0002499,2]
[319753553,1710958232990,-892.77924904,0.0002499,2]
[319753555,1710958232999,-306.95592496,0.00024991,2]
[319753557,1710958233008,-436.34031341,0.00024991,2]
[319753558,1710958233017,-252.77532778,0.00024991,2]
[319753560,1710958233026,-368.62101648,0.00024991,2]
[319753562,1710958233035,-789.02389225,0.00024992,2]
[319753573,1710958238738,-500.0,0.00024895,2]
[319753574,1710958238748,-999.12884704,0.00024992,2]
[319753575,1710958238758,-481.3186768,0.00024992,2]
[319753594,1710958240858,-18028.2013232,0.00024992,2]
[319753595,1710958240867,-992.05,0.00024992,2]
[319753596,1710958240877,-1339.2,0.00024992,2]
[319753597,1710958240886,-398.00206523,0.00024992,2]
[319753598,1710958240897,-1145.24793477,0.00024992,2]
[319753599,1710958240912,-500.0,0.00024992,2]
[319753600,1710958240922,-8064.88350363,0.00024992,2]
[319753601,1710958240933,-1295.36649637,0.00024992,2]
[319753602,1710958240942,-500.0,0.00024992,2]
[319753603,1710958240952,-500.0,0.00024992,2]
[319753604,1710958240961,-2650.26,0.00024992,2]
[319753605,1710958240970,-500.0,0.00024992,2]
[319753606,1710958240979,-500.0,0.00024992,2]
[319753607,1710958240988,-1107.0,0.00024992,2]
[319753608,1710958240997,-833.33,0.00024992,2]
[319753609,1710958241006,-1494.85,0.00024992,2]
[319753610,1710958241130,-401.5795272,0.00024992,2]
[319753611,1710958241139,-500.0,0.00024992,2]
[319753612,1710958241148,-254.78094714,0.00024992,2]
[319753613,1710958241161,-258.05534416,0.00024992,2]
[319753614,1710958241172,-3439.63465584,0.00024992,2]
[319753615,1710958241181,-1553.97,0.00024992,2]
[319753616,1710958241190,-8113.82284416,0.00024992,2]
[319753617,1710958241202,-10733.31715584,0.00024992,2]
[319753618,1710958241211,-500.0,0.00024992,2]
[319753619,1710958241220,-500.0,0.00024992,2]
[319753620,1710958241229,-821.56,0.00024992,2]
[319753621,1710958241238,-583.11518525,0.00024992,2]
[319753622,1710958241249,-1456.39481475,0.00024992,2]
[319753623,1710958241259,-324.19258069,0.00024993,2]
[319753624,1710958241268,-154.98450155,0.00024993,2]
[319753625,1710958241277,-298.44560106,0.00024993,2]
[319753626,1710958241287,-177.21479438,0.00024993,2]
[319753627,1710958241296,-275.15948572,0.00024993,2]
[319753628,1710958241305,-179.93362187,0.00024993,2]
[319753629,1710958241315,-205.03177245,0.00024993,2]
[319753630,1710958241324,-154.92253873,0.00024993,2]
[319753631,1710958241334,-616.97666661,0.00024993,2]
[319753632,1710958241348,-210.03782905,0.00024993,2]
[319753633,1710958241357,-500.0,0.00024993,2]
[319753634,1710958241367,-216.29415296,0.00024993,2]
[319753635,1710958241377,-500.0,0.00024993,2]
[319753636,1710958241386,-500.0,0.00024993,2]
[319753637,1710958241395,-500.0,0.00024993,2]
[319753638,1710958241405,-500.0,0.00024993,2]
[319753639,1710958241415,-500.0,0.00024993,2]
[319753640,1710958241424,-500.0,0.00024993,2]
[319753641,1710958241433,-500.0,0.00024993,2]
[319753642,1710958241442,-500.0,0.00024993,2]
[319753643,1710958241452,-589.28,0.00024993,2]
[319753644,1710958241461,-501.86,0.00024993,2]
[319753645,1710958241471,-500.0,0.00024993,2]
[319753646,1710958241480,-500.0,0.00024993,2]
[319753647,1710958241493,-500.0,0.00024993,2]
[319753648,1710958241501,-500.0,0.00024993,2]
[319753649,1710958241510,-500.0,0.00024993,2]
[319753650,1710958241519,-500.0,0.00024993,2]
[319753651,1710958241528,-500.0,0.00024993,2]
[319753652,1710958241537,-500.0,0.00024993,2]
[319753653,1710958241546,-733.58,0.00024993,2]
[319753654,1710958241555,-500.0,0.00024993,2]
[319753655,1710958241565,-500.0,0.00024993,2]
[319753656,1710958241574,-615.74,0.00024993,2]
[319753657,1710958241584,-500.0,0.00024993,2]
[319753658,1710958241594,-678.89,0.00024993,2]